bitfinex/quotes_SOLUSD_20240818
["timestamp","ask_amount","ask_price","bid_price","bid_amount"]
[1723946598359,0.25098,141.64,141.61,4.9431]
[1723946598545,0.37647,141.64,141.6,4.9434]
[1723946599254,0.25098,141.63,141.6,4.9434]
[1723946602546,0.12549,141.64,141.58,27.2528]
[1723946602748,22.2001,141.68,141.6,10.66]
[1723946602974,15.6006,141.69,141.64,4.9419]
[1723946603152,10.66,141.7,141.65,4.9417]
[1723946603464,4.9399,141.71,141.63,1.41184766]
[1723946603978,4.9399,141.71,141.62,10.66]
[1723946603979,4.94,141.7,141.62,10.66]
[1723946605073,4.94,141.7,141.65,4.9416]
[1723946605860,0.37647,141.69,141.65,4.9416]
[1723946606056,0.25098,141.68,141.66,4.9413]
[1723946607880,0.25098,141.68,141.61,6.3263]
[1723946608860,0.25098,141.67,141.64,4.942]
[1723946609184,0.25098,141.66,141.64,4.942]
[1723946610482,0.12549,141.68,141.65,4.9417]
[1723946610687,0.25098,141.68,141.66,4.9412]
[1723946610855,0.12549,141.67,141.65,4.9417]
[1723946611056,0.12549,141.68,141.65,4.9417]
[1723946612180,0.12549,141.68,141.61,6.3263]
[1723946612356,4.9414,141.66,141.61,4.9428]
[1723946612555,0.37647,141.65,141.58,33.3255]
[1723946612780,0.25098,141.65,141.58,33.3255]
[1723946613086,0.12549,141.65,141.58,33.3255]
[1723946613254,0.12549,141.66,141.62,4.9427]
[1723946613456,0.12549,141.65,141.62,4.9427]
[1723946614380,0.25098,141.65,141.58,22.6655]
[1723946614578,0.12549,141.63,141.58,22.6655]
[1723946614888,0.12549,141.63,141.6,4.9432]
[1723946623588,0.12549,141.61,141.57,4.9442]
[1723946623910,0.12549,141.59,141.54,15.3521]
[1723946624061,0.25098,141.6,141.59,4.9438]
[1723946624693,0.12549,141.6,141.58,4.9441]
[1723946624983,0.12549,141.61,141.58,4.9441]
[1723946625165,0.50196,141.62,141.58,4.9441]
[1723946625579,0.50196,141.62,141.59,4.9438]
[1723946626990,0.37647,141.62,141.59,4.9438]
[1723946627294,0.25098,141.62,141.59,4.9438]
[1723946627469,0.12549,141.62,141.59,4.9438]
[1723946627680,0.12549,141.63,141.59,4.9438]
[1723946627681,0.50196,141.63,141.59,4.9438]
[1723946631493,40.02996722,141.67,141.57,17.0416]
[1723946631697,20.12549,141.66,141.57,17.0416]
[1723946632778,0.12549,141.65,141.57,17.0416]
[1723946632995,0.25098,141.65,141.57,17.0416]
[1723946633200,0.25098,141.64,141.57,17.0416]
[1723946633370,0.12549,141.63,141.6,4.9434]
[1723946638317,0.12549,141.63,141.61,4.943]
[1723946640187,0.12549,141.63,141.6,4.9434]
[1723946640507,15.3521,141.68,141.61,1.41230317]
[1723946640712,32.7461,141.71,141.61,10.66]
[1723946640892,32.7461,141.71,141.64,4.942]
[1723946640893,4.9406,141.69,141.64,4.942]
[1723946642188,4.94,141.7,141.65,4.9417]
[1723946642725,0.12549,141.68,141.65,4.9417]
[1723946644687,0.12549,141.68,141.64,4.942]
[1723946647590,5.06619,141.68,141.63,4.9423]
[1723946647816,0.12549,141.67,141.63,4.9423]
[1723946648295,0.12549,141.66,141.6,15.4856]
[1723946648494,5.19238,141.66,141.6,15.4856]
[1723946648715,0.12549,141.64,141.57,17.0416]
[1723946648938,0.12549,141.64,141.57,33.4232]
[1723946649423,0.25098,141.64,141.57,33.4232]
[1723946649591,0.12549,141.63,141.57,33.4232]
[1723946649797,0.25098,141.63,141.57,33.4232]
[1723946650001,0.12549,141.62,141.57,33.4232]
[1723946650845,0.12549,141.62,141.57,16.3816]
[1723946651146,0.37647,141.62,141.54,16.8438]
[1723946651319,0.12549,141.61,141.54,16.8438]
[1723946651514,0.12549,141.6,141.54,6.1838]
[1723946651726,0.12549,141.6,141.55,4.9449]
[1723946651727,5.31997,141.6,141.55,4.9449]
[1723946651925,0.12549,141.59,141.55,4.9449]
[1723946652849,0.12549,141.59,141.56,4.9448]
[1723946659419,0.12549,141.59,141.58,4.9442]
[1723946660043,0.12549,141.59,141.55,10.66]
[1723946660342,0.25098,141.6,141.54,6.1838]
[1723946661047,0.25098,141.61,141.54,6.1838]
[1723946661218,0.12549,141.6,141.54,6.1838]
[1723946661846,0.12549,141.6,141.57,4.9445]
[1723946664949,39.22708788,141.64,141.54,6.1838]
[1723946664950,4.9425,141.63,141.58,4.9441]
[1723946666347,0.37647,141.62,141.58,4.9441]
[1723946666551,0.50196,141.62,141.58,4.9441]
[1723946669653,0.37647,141.62,141.58,4.9441]
[1723946671231,0.12549,141.61,141.57,4.9444]
[1723946671429,0.25098,141.61,141.57,4.9444]
[1723946671656,0.37647,141.6,141.57,4.9444]
[1723946671859,0.25098,141.6,141.57,4.9444]
[1723946677732,0.25098,141.6,141.53,27.0416]
[1723946677937,0.25098,141.6,141.53,16.3816]
[1723946678138,0.12549,141.58,141.55,4.9449]
[1723946678345,0.25098,141.58,141.55,4.9449]
[1723946679136,0.12549,141.56,141.51,4.9466]
[1723946679336,5.19588,141.56,141.51,4.9466]
[1723946679567,0.12549,141.55,141.51,4.9466]
[1723946679773,0.12549,141.54,141.51,4.9466]
[1723946680064,0.25098,141.54,141.51,4.9466]
[1723946680269,0.25098,141.54,141.5,4.9469]
[1723946680447,0.12549,141.53,141.48,4.9476]
[1723946680651,0.12549,141.52,141.48,4.9476]
[1723946680864,0.25098,141.52,141.48,4.9476]
[1723946682466,0.25098,141.52,141.49,4.9473]
[1723946687081,0.12549,141.51,141.49,4.9473]
[1723946687287,0.12549,141.5,141.49,4.9473]
[1723946687447,0.25098,141.5,141.49,4.9473]
[1723946689462,0.12549,141.5,141.49,4.9473]
[1723946689671,0.25098,141.53,141.49,4.9473]
[1723946689879,0.12549,141.52,141.49,4.9473]
[1723946690576,0.25098,141.52,141.49,4.9473]
[1723946691657,0.25098,141.52,141.46,15.5279]
[1723946692658,0.25098,141.52,141.48,4.9474]
[1723946693077,0.25098,141.52,141.49,4.9473]
[1723946694989,0.25098,141.52,141.48,4.9476]
[1723946695492,0.25098,141.51,141.48,4.9476]
[1723946695660,0.12549,141.5,141.48,4.9476]
[1723946696392,0.12549,141.5,141.49,4.9473]
[1723946697282,0.12549,141.51,141.49,4.9473]
[1723946697790,0.25098,141.52,141.49,4.9473]
[1723946698191,4.9453,141.55,141.5,4.9469]
[1723946698401,24.9453,141.55,141.48,1.41333386]
[1723946698705,21.983,141.56,141.49,10.66]
[1723946699005,4.9444,141.58,141.53,4.9459]
[1723946699165,4.9444,141.58,141.5,1.41311229]
[1723946699166,45.60382594,141.6,141.54,4.9455]
[1723946699371,4.9439,141.59,141.54,4.9455]
[1723946700983,0.12549,141.58,141.54,4.9455]
[1723946701669,0.37647,141.58,141.54,4.9455]
[1723946702102,0.12549,141.57,141.54,4.9455]
[1723946702305,0.12549,141.56,141.54,4.9455]
[1723946702997,0.25098,141.57,141.54,4.9455]
[1723946703295,0.12549,141.56,141.53,4.9458]
[1723946703600,0.12549,141.55,141.53,4.9458]
[1723946703800,0.25098,141.55,141.53,4.9458]
[1723946705704,0.25098,141.55,141.52,4.9462]
[1723946706986,0.12549,141.53,141.43,6.4551]
[1723946707173,0.37647,141.53,141.45,10.66]
[1723946707380,0.12549,141.52,141.45,10.66]
[1723946707593,0.12549,141.51,141.45,10.66]
[1723946707895,0.25098,141.51,141.48,4.9476]
[1723946708800,5.19758,141.51,141.47,4.9479]
[1723946709098,5.19758,141.51,141.4,303.2721987]
[1723946709099,0.12549,141.48,141.4,11.4921987]
[1723946709278,0.37647,141.48,141.4,11.4921987]
[1723946709693,0.37647,141.48,141.44,4.9487]
[1723946710287,0.25098,141.48,141.45,4.9486]
[1723946710811,0.12549,141.48,141.47,4.948]
[1723946712107,0.12549,141.49,141.48,4.9476]
[1723946712309,0.25098,141.49,141.48,4.9476]
[1723946712609,16.0203,141.53,141.49,4.9472]
[1723946713681,0.37647,141.52,141.49,4.9472]
[1723946716896,0.12549,141.51,141.49,4.9472]
[1723946717100,0.12549,141.52,141.5,4.9469]
[1723946718181,0.12549,141.52,141.49,4.9472]
[1723946718813,0.12549,141.52,141.45,10.66]
[1723946719406,0.12549,141.52,141.42,16.1278]
[1723946719599,0.12549,141.52,141.45,10.66]
[1723946719914,0.12549,141.52,141.49,4.9473]
[1723946723704,0.12549,141.51,141.49,4.9473]
[1723946723902,0.25098,141.51,141.49,4.9473]
[1723946724089,0.12549,141.5,141.48,4.9476]
[1723946724289,0.12549,141.49,141.48,4.9476]
[1723946724505,0.25098,141.49,141.48,4.9476]
[1723946726909,26.1956,141.54,141.49,4.9473]
[1723946727123,4.9456,141.54,141.49,4.9473]
[1723946728303,0.50196,141.53,141.49,4.9473]
[1723946728502,0.50196,141.53,141.46,10.66]
[1723946728503,16.07252681,141.53,141.48,4.9476]
[1723946729325,49.9463,141.52,141.48,4.9476]
[1723946729620,0.37647,141.51,141.48,4.9476]
[1723946729997,0.37647,141.51,141.47,4.9479]
[1723946730718,0.25098,141.5,141.47,4.9479]
[1723946739233,0.37647,141.49,141.46,4.9483]
[1723946739398,0.12549,141.47,141.46,4.9483]
[1723946742014,0.12549,141.47,141.42,16.1278]
[1723946742241,0.25098,141.47,141.42,16.1278]
[1723946742727,0.12549,141.46,141.42,16.1278]
[1723946743307,0.12549,141.46,141.4,11.4921987]
[1723946744122,0.12549,141.45,141.4,11.4921987]
[1723946744711,0.25098,141.45,141.43,4.9494]
[1723946745017,0.12549,141.44,141.43,4.9494]
[1723946753018,0.12549,141.45,141.43,4.9494]
[1723946753218,0.25098,141.45,141.43,4.9494]
[1723946760230,0.25098,141.45,141.44,4.949]
[1723946768356,0.12549,141.45,141.44,4.949]
[1723946768549,0.12549,141.47,141.44,4.949]
[1723946768730,0.37647,141.47,141.44,4.949]
[1723946770871,0.37647,141.47,141.43,4.9493]
[1723946777079,0.37647,141.47,141.42,4.9497]
[1723946777080,5.32457,141.47,141.42,4.9497]
[1723946777280,0.12549,141.46,141.42,4.9497]
[1723946777485,0.12549,141.45,141.42,4.9497]
[1723946777774,0.25098,141.45,141.42,4.9497]
[1723946778092,0.00196,141.46,141.42,4.9497]
[1723946778377,4.9481,141.47,141.42,4.9497]
[1723946780261,0.37647,141.46,141.42,4.9497]
[1723946781796,0.37647,141.46,141.4,0.8321987]
[1723946781963,5.32487,141.46,141.41,4.9498]
[1723946782782,5.32487,141.46,141.42,4.9497]
[1723946783783,0.37647,141.46,141.42,4.9497]
[1723946794695,5.32487,141.46,141.41,4.95]
[1723946794897,0.12549,141.45,141.41,4.95]
[1723946797003,0.12549,141.45,141.4,0.8321987]
[1723946797298,0.12549,141.44,141.4,0.8321987]
[1723946797502,0.37647,141.44,141.4,0.8321987]
[1723946797673,0.12549,141.43,141.4,0.8321987]
[1723946797873,0.12549,141.42,141.4,0.8321987]
[1723946798078,0.25098,141.42,141.4,0.8321987]
[1723946802279,0.12549,141.41,141.4,0.8321987]
[1723946802490,0.25098,141.41,141.4,0.8321987]
[1723946802789,0.37647,141.41,141.4,0.8321987]
[1723946803585,0.50196,141.41,141.4,0.8321987]
[1723946810210,0.37647,141.41,141.4,0.8321987]
[1723946810505,0.25098,141.41,141.4,0.8321987]
[1723946813411,0.37647,141.41,141.4,0.8321987]
[1723946813716,0.50196,141.41,141.4,0.8321987]
[1723946815520,27.32559595,141.45,141.4,0.8321987]
[1723946815818,0.25098,141.44,141.4,0.8321987]
[1723946816821,0.25098,141.43,141.4,0.8321987]
[1723946819401,7.32559595,141.45,141.42,10.66]
[1723946819602,7.32559595,141.45,141.4,22.5562987]
[1723946819816,21.32,141.49,141.41,10.66]
[1723946820115,28.64901653,141.49,141.41,10.66]
[1723946820413,12.27661653,141.49,141.44,4.949]
[1723946820824,12.27661653,141.49,141.43,4.9493]
[1723946820825,4.9477,141.48,141.43,4.9493]
[1723946821689,0.25098,141.47,141.43,4.9493]
[1723946821891,0.12549,141.46,141.43,4.9493]
[1723946822093,0.12549,141.45,141.43,4.9493]
[1723946822315,0.25098,141.45,141.43,4.9493]
[1723946824904,4.9477,141.48,141.44,4.949]
[1723946825110,0.37647,141.47,141.44,4.949]
[1723946826939,0.25098,141.47,141.44,4.949]
[1723946827117,0.25098,141.48,141.44,4.949]
[1723946828447,7.32901653,141.49,141.46,10.66]
[1723946828602,4.9465,141.52,141.47,4.948]
[1723946830142,7.454506,141.53,141.49,4.9472]
[1723946830313,7.454506,141.53,141.47,1.41346407]
[1723946830521,4.9456,141.54,141.47,1.41346407]
[1723946830917,4.9456,141.54,141.49,4.9472]
[1723946831416,4.9456,141.54,141.46,10.66]
[1723946831610,5.19688,141.53,141.46,10.66]
[1723946831909,5.19728,141.52,141.45,27.1802]
[1723946832939,5.19728,141.52,141.47,4.948]
[1723946834212,0.12549,141.49,141.45,16.5202]
[1723946834443,0.25098,141.49,141.45,16.5202]
[1723946837719,0.12549,141.48,141.41,27.1802]
[1723946837955,0.25098,141.48,141.44,4.949]
[1723946838143,6.2715,141.52,141.43,10.66]
[1723946838466,6.2715,141.52,141.45,10.66]
[1723946838467,0.12549,141.51,141.45,10.66]
[1723946839135,0.12549,141.5,141.46,4.948]
[1723946839564,0.12549,141.5,141.47,4.948]
[1723946839565,0.25098,141.5,141.47,4.948]
[1723946840034,0.25098,141.51,141.47,4.948]
[1723946843641,7.32806235,141.53,141.47,27.1802]
[1723946843844,15.6472,141.56,141.49,10.66]
[1723946844354,20.0,141.55,141.49,10.66]
[1723946845067,0.12549,141.53,141.49,15.6073]
[1723946845259,0.25098,141.53,141.49,15.6073]
[1723946848265,7.33228684,141.57,141.5,1.41323105]
[1723946848575,4.9448,141.57,141.52,4.9462]
[1723946850459,0.12549,141.57,141.53,4.9459]
[1723946851172,0.25098,141.57,141.53,4.9459]
[1723946852366,5.19558,141.57,141.52,4.9462]
[1723946852772,5.19558,141.57,141.51,10.66]
[1723946852773,0.12549,141.55,141.51,4.9465]
[1723946852970,0.25098,141.55,141.51,4.9465]
[1723946855750,0.12549,141.55,141.51,10.66]
[1723946855951,0.12549,141.56,141.51,10.66]
[1723946855952,0.25098,141.56,141.51,10.66]
[1723946856981,0.25098,141.56,141.52,4.9462]
[1723946858175,0.25098,141.56,141.52,6.35924383]
[1723946859252,0.25098,141.56,141.52,4.9462]
[1723946859648,7.33349163,141.59,141.54,4.9455]
[1723946859849,4.9446,141.59,141.54,4.9455]
[1723946860848,9.8885,141.59,141.54,4.9455]
[1723946861061,0.12549,141.58,141.54,4.9455]
[1723946861681,0.25098,141.58,141.54,4.9455]
[1723946869690,0.25098,141.58,141.54,6.35829256]
[1723946871887,0.25098,141.58,141.54,4.9455]
[1723946876097,5.19518,141.58,141.53,15.6058]
[1723946879001,0.12549,141.55,141.52,15.0314]
[1723946879166,10.91098,141.58,141.52,15.0314]
[1723946879167,0.12549,141.54,141.52,15.0314]
[1723946879367,10.91098,141.58,141.52,15.0314]
[1723946879568,0.12549,141.56,141.52,19.9776]
[1723946879776,0.25098,141.56,141.52,19.9776]
[1723946880893,5.19588,141.56,141.52,15.0314]
[1723946885500,0.12549,141.54,141.52,15.0314]
[1723946885796,0.25098,141.54,141.52,15.0314]
[1723946901814,0.25098,141.54,141.5,6.2952]
[1723946902112,0.12549,141.52,141.48,21.6057]
[1723946902413,0.37647,141.52,141.48,21.6057]
[1723946903511,0.37647,141.52,141.48,16.6584]
[1723946903807,0.12549,141.51,141.48,16.6584]
[1723946904112,0.12549,141.5,141.48,16.6584]
[1723946904306,0.25098,141.5,141.48,16.6584]
[1723946907516,0.12549,141.5,141.48,16.6584]
[1723946907826,0.25098,141.51,141.48,16.6584]
[1723946915014,0.12549,141.5,141.48,16.6584]
[1723946915322,0.25098,141.5,141.48,16.6584]
[1723946917397,0.25098,141.5,141.44,10.66]
[1723946917597,0.25098,141.5,141.45,15.5728]
[1723946922428,0.12549,141.5,141.47,4.948]
[1723946922627,0.25098,141.51,141.47,4.948]
[1723946933715,0.12549,141.51,141.48,4.9476]
[1723946933916,0.25098,141.52,141.48,4.9476]
[1723946934117,0.12549,141.51,141.48,4.9476]
[1723946934413,0.12549,141.51,141.47,4.9479]
[1723946934647,5.07219,141.51,141.45,15.5728]
[1723946934821,0.12549,141.5,141.45,15.5728]
[1723946935023,5.19808,141.5,141.45,15.5728]
[1723946936935,5.19808,141.5,141.45,20.5215]
[1723946939546,5.19808,141.5,141.46,4.9483]
[1723946941827,4.9479,141.48,141.45,15.5728]
[1723946942117,5.19798,141.5,141.45,20.5215]
[1723946947960,0.25098,141.5,141.46,4.9483]
[1723946949945,0.25098,141.5,141.47,4.948]
[1723946950461,0.25098,141.5,141.46,4.9483]
[1723946951674,7.33322933,141.52,141.49,10.66]
[1723946951840,22.6738,141.58,141.54,4.9455]
[1723946952042,29.05643564,141.59,141.54,4.9455]
[1723946952252,7.32893564,141.59,141.56,4.9448]
[1723946952562,4.9434,141.61,141.56,4.9448]
[1723946953137,15.6034,141.61,141.56,4.9448]
[1723946954284,0.12549,141.6,141.56,4.9448]
[1723946954845,0.12549,141.6,141.55,4.9452]
[1723946955164,0.12549,141.58,141.49,16.6639]
[1723946955375,5.06969,141.58,141.52,4.9462]
[1723946955666,0.12549,141.58,141.49,16.6639]
[1723946955870,0.12549,141.56,141.49,27.3239]
[1723946956033,0.25098,141.56,141.49,27.3239]
[1723946956233,0.25098,141.56,141.52,4.9461]
[1723946956663,0.25098,141.57,141.52,4.9461]
[1723946962940,0.12549,141.56,141.49,16.6639]
[1723946963142,15.73099,141.55,141.47,17.1115]
[1723946963363,10.78549,141.55,141.5,4.9468]
[1723946963545,0.12549,141.54,141.5,4.9468]
[1723946964461,0.12549,141.55,141.5,4.9468]
[1723946964462,0.25098,141.55,141.5,4.9468]
[1723946967573,0.25098,141.55,141.51,4.9466]
[1723946968483,0.12549,141.55,141.51,4.9466]
[1723946968780,0.25098,141.56,141.51,4.9466]
[1723946970158,0.25098,141.56,141.52,4.9461]
[1723946970387,0.12549,141.56,141.51,10.66]
[1723946970583,0.25098,141.57,141.51,10.66]
[1723946971250,22.99756117,141.59,141.51,10.66]
[1723946971251,12.33756117,141.59,141.51,10.66]
[1723946972179,7.39376117,141.59,141.51,10.66]
[1723946972357,7.39376117,141.59,141.55,4.945]
[1723946972552,15.2593,141.6,141.56,1.41266538]
[1723946972878,15.2593,141.6,141.55,4.945]
[1723946973695,0.12549,141.59,141.55,4.945]
[1723946973872,0.25098,141.59,141.55,4.945]
[1723946977374,0.25098,141.59,141.56,6.35751585]
[1723946977574,0.25098,141.59,141.56,4.9448]
[1723946978395,0.25098,141.59,141.55,4.9452]
[1723946982398,10.66,141.58,141.5,16.5084]
[1723946982571,5.32127,141.57,141.51,4.9463]
[1723946984270,0.25098,141.57,141.52,1.41304837]
[1723946984576,0.25098,141.57,141.51,10.66]
[1723946984778,0.25098,141.57,141.52,1.41290284]
[1723946985287,0.25098,141.57,141.51,10.66]
[1723946985885,0.25098,141.57,141.53,4.9459]
[1723946996702,5.19548,141.57,141.52,4.9462]
[1723946998323,0.25098,141.57,141.53,4.9459]
[1723947001413,4.9442,141.58,141.51,10.66]
[1723947001623,5.19488,141.59,141.54,4.9455]
[1723947004102,4.9442,141.58,141.54,4.9455]
[1723947006624,0.12549,141.57,141.54,4.9455]
[1723947007126,0.25098,141.57,141.53,4.9458]
[1723947011507,0.12549,141.58,141.54,6.35832798]
[1723947011707,0.25098,141.58,141.55,1.4127517]
[1723947012131,0.25098,141.58,141.54,4.9455]
[1723947012916,27.59606276,141.6,141.55,4.9451]
[1723947013243,5.19478,141.59,141.55,4.9451]
[1723947018711,15.2593,141.6,141.55,4.9451]
[1723947018712,4.9435,141.6,141.55,4.9451]
[1723947018917,7.392392,141.62,141.53,10.66]
[1723947019139,7.392392,141.62,141.61,10.66]
[1723947019344,15.3824,141.66,141.61,15.6031]
[1723947019551,15.3824,141.66,141.62,1.41202235]
[1723947020521,0.12549,141.65,141.62,1.41202235]
[1723947020721,0.25098,141.65,141.62,1.41202235]
[1723947022646,0.25098,141.65,141.62,6.35482235]
[1723947022832,0.25098,141.66,141.62,6.35482235]
[1723947023312,0.25098,141.66,141.62,4.9428]
[1723947023714,0.25098,141.66,141.62,6.35476786]
[1723947024748,0.25098,141.66,141.62,4.9428]
[1723947025821,0.25098,141.66,141.62,6.35477004]
[1723947026023,0.25098,141.66,141.62,21.87007004]
[1723947026438,0.12549,141.68,141.63,10.66]
[1723947026636,0.25098,141.68,141.64,1.41177298]
[1723947027242,18.04760013,141.71,141.64,1.41177298]
[1723947027450,18.04760013,141.71,141.65,1.41171042]
[1723947027626,18.04760013,141.71,141.63,10.66]
[1723947027819,4.9404,141.69,141.64,4.942]
[1723947028319,4.94,141.7,141.65,6.3534485]
[1723947028519,0.12549,141.69,141.65,6.3534485]
[1723947028729,0.25098,141.69,141.65,6.3534485]
[1723947029026,0.25098,141.69,141.65,4.9417]
[1723947029431,5.19138,141.69,141.64,4.942]
[1723947032854,5.19138,141.69,141.65,1.41079015]
[1723947033063,0.25098,141.69,141.65,6.35249015]
[1723947033226,7.38716226,141.72,141.7,4.9399]
[1723947033553,7.387162,141.75,141.71,4.9396]
[1723947033941,4.9379,141.76,141.71,4.9396]
[1723947034761,28.70405107,141.78,141.7,10.66]
[1723947034762,4.9382,141.75,141.7,10.66]
[1723947035751,0.12549,141.74,141.7,10.66]
[1723947036058,4.9376,141.77,141.7,10.66]
[1723947037256,0.25098,141.76,141.7,10.66]
[1723947043037,33.64125107,141.78,141.7,10.66]
[1723947043241,4.9369,141.79,141.7,10.66]
[1723947043439,20.0,141.79,141.72,10.66]
[1723947043661,24.9369,141.79,141.72,10.66]
[1723947044055,4.9369,141.79,141.72,10.66]
[1723947044530,15.5969,141.79,141.71,15.5153]
[1723947045043,0.12549,141.78,141.71,15.5153]
[1723947045749,0.25098,141.78,141.71,15.5153]
[1723947046454,15.5977,141.77,141.71,15.5153]
[1723947046760,15.72479,141.73,141.68,6.5447]
[1723947047232,0.12549,141.72,141.68,6.5447]
[1723947048754,5.06479,141.72,141.67,15.2338]
[1723947048961,0.12549,141.71,141.67,15.2338]
[1723947049865,5.06509,141.71,141.67,15.2338]
[1723947050047,0.12549,141.7,141.67,15.2338]
[1723947050240,5.06599,141.69,141.64,11.5036]
[1723947050468,15.72599,141.69,141.64,11.5036]
[1723947051248,5.06549,141.7,141.65,6.35137451]
[1723947051458,0.12549,141.7,141.66,4.9413]
[1723947052772,0.25098,141.71,141.66,4.9413]
[1723947052943,5.19068,141.71,141.66,4.9413]
[1723947057869,0.12549,141.69,141.65,4.9416]
[1723947058074,0.25098,141.69,141.65,4.9416]
[1723947058451,5.19138,141.69,141.64,4.942]
[1723947060682,4.9414,141.66,141.61,11.5046]
[1723947060981,0.25098,141.65,141.61,11.5046]
[1723947064180,0.12549,141.66,141.62,4.9427]
[1723947064682,0.25098,141.66,141.62,4.9427]
[1723947070760,4.941,141.67,141.62,4.9427]
[1723947071382,10.91098,141.68,141.61,6.5616]
[1723947071580,0.12549,141.67,141.61,6.5616]
[1723947072954,5.06649,141.67,141.62,4.9427]
[1723947073684,0.12549,141.67,141.63,4.9423]
[1723947080463,5.06649,141.67,141.63,4.9423]
[1723947085691,17.2216,141.71,141.7,4.94]
[1723947086088,10.66,141.8,141.72,4.9393]
[1723947086279,10.66,141.78,141.72,4.9393]
[1723947086476,10.66,141.78,141.73,4.9389]
[1723947086897,10.66,141.78,141.7,10.66]
[1723947086898,15.5972,141.78,141.72,4.9392]
[1723947087101,4.9366,141.8,141.74,4.9385]
[1723947087280,4.9366,141.8,141.74,6.34931139]
[1723947087604,4.9366,141.8,141.75,4.9382]
[1723947087780,4.9366,141.8,141.74,4.9385]
[1723947088995,0.50196,141.79,141.74,4.9385]
[1723947089203,0.12549,141.78,141.74,4.9385]
[1723947089586,0.37647,141.79,141.74,4.9385]
[1723947090012,4.9362,141.81,141.75,4.9382]
[1723947090312,24.9362,141.81,141.75,4.9382]
[1723947091175,0.37647,141.8,141.75,4.9382]
[1723947091788,0.37647,141.8,141.76,4.9379]
[1723947092004,0.25098,141.8,141.76,4.9379]
[1723947094404,0.12549,141.8,141.76,4.9379]
[1723947095302,4.9358,141.82,141.77,6.34814711]
[1723947095605,20.9557,141.84,141.77,10.66]
[1723947095808,20.9557,141.84,141.79,4.9367]
[1723947096314,4.9355,141.83,141.75,10.66]
[1723947097303,0.37647,141.82,141.75,10.66]
[1723947097817,0.37647,141.82,141.78,4.9372]
[1723947097994,0.12549,141.82,141.78,4.9372]
[1723947098393,5.31227,141.82,141.77,4.9375]
[1723947098595,4.9361,141.81,141.76,17.2825]
[1723947098790,0.12549,141.8,141.76,17.2825]
[1723947099190,4.9361,141.81,141.76,17.2825]
[1723947100796,5.18678,141.82,141.77,4.9374]
[1723947100992,0.12549,141.81,141.77,4.9374]
[1723947102196,4.9358,141.82,141.77,4.9374]
[1723947104441,0.12549,141.81,141.77,4.9374]
[1723947105700,5.31277,141.81,141.76,17.2824]
[1723947108798,4.9366,141.8,141.76,12.3447]
[1723947108999,0.12549,141.79,141.76,12.3447]
[1723947112800,6.3126,141.78,141.75,4.9382]
[1723947113001,4.9452,141.55,141.41,10.54457799]
[1723947113325,4.9452,141.55,141.4,0.8321987]
[1723947113326,43.1934,141.59,141.45,10.66]
[1723947113514,0.12549,141.55,141.48,10.66]
[1723947113715,12.48279,141.56,141.47,6.3426]
[1723947113903,30.833,141.59,141.49,10.66]
[1723947113904,0.12549,141.57,141.49,10.66]
[1723947114107,4.9453,141.55,141.49,10.66]
[1723947114414,4.9453,141.55,141.47,17.0026]
[1723947114714,0.12549,141.56,141.47,17.0026]
[1723947114715,5.07109,141.54,141.47,17.0026]
[1723947114912,4.9461,141.53,141.47,17.0026]
[1723947115522,24.9461,141.53,141.47,17.0026]
[1723947115738,30.0,141.52,141.47,17.0026]